fUST/lending_fUST_20250513
["ID","MTS","AMOUNT","RATE_DAILY","PERIOD"]
[360865134,1747083033034,-500.0,0.00013568,2]
[360865135,1747083033044,-500.0,0.00013568,2]
[360865136,1747083033053,-500.0,0.00013568,2]
[360865137,1747083033063,-500.0,0.00013568,2]
[360865138,1747083033072,-500.0,0.00013568,2]
[360865139,1747083033082,-625.01327602,0.00013568,2]
[360865140,1747083033093,-275.85939501,0.00013568,2]
[360865141,1747083033102,-500.0,0.00013568,2]
[360865142,1747083033111,-500.0,0.00013568,2]
[360865143,1747083033121,-50000.0,0.00013568,2]
[360865144,1747083033130,-500.0,0.00013569,2]
[360865145,1747083033140,-500.0,0.00013569,2]
[360865146,1747083033149,-488.12020198,0.00013569,2]
[360865147,1747083033158,-514.90154515,0.00013569,2]
[360865148,1747083033168,-500.0,0.00013569,2]
[360865149,1747083033177,-500.0,0.00013569,2]
[360865150,1747083033187,-500.85089711,0.00013573,2]
[360865151,1747083033196,-271.84811828,0.00013573,2]
[360865152,1747083033206,-500.0,0.00013573,2]
[360865153,1747083033215,-500.0,0.00013573,2]
[360865154,1747083033224,-500.0,0.00013573,2]
[360865155,1747083033234,-154.16192095,0.00013573,2]
[360865156,1747083033244,-500.0,0.00013573,2]
[360865157,1747083033253,-500.0,0.00013573,2]
[360865158,1747083033263,-500.0,0.00013573,2]
[360865159,1747083033273,-504.65985789,0.00013573,2]
[360865160,1747083033282,-590.68358803,0.00013573,2]
[360865161,1747083033291,-500.0,0.00013573,2]
[360865162,1747083033301,-500.0,0.00013573,2]
[360865163,1747083033311,-500.0,0.00013573,2]
[360865164,1747083033320,-500.0,0.00013573,2]
[360865165,1747083033329,-500.0,0.00013573,2]
[360865166,1747083033338,-500.0,0.00013573,2]
[360865167,1747083033348,-500.0,0.00013573,2]
[360865168,1747083033358,-500.0,0.00013573,2]
[360865169,1747083033368,-500.0,0.00013573,2]
[360865170,1747083033377,-500.0,0.00013573,2]
[360865171,1747083033386,-500.0,0.00013573,2]
[360865172,1747083033396,-500.0,0.00013573,2]
[360865173,1747083033406,-500.0,0.00013573,2]
[360865174,1747083033415,-500.0,0.00013573,2]
[360865175,1747083033425,-151.0,0.0001359,2]
[360865176,1747083033434,-447429.93147414,0.00013599,2]
[360865177,1747083033447,-446.61247371,0.00013599,2]
[360865178,1747083033459,-20718.29012138,0.00013599,2]
[360865211,1747083038615,-20533.9709597,0.00013599,2]
[360865212,1747083038670,-647.97717085,0.00013599,2]
[360865349,1747083044406,-2147.2321606,0.00013599,2]
[360865356,1747083046675,-309.74,0.00013599,2]
[360865422,1747084036105,-1572.0241533,0.00012577,2]
[360865423,1747084036128,-173.262,0.00013327,2]
[360865424,1747084036154,-250.0,0.0001334,2]
[360865425,1747084036176,-200.0,0.0001339,2]
[360865426,1747084036200,-300.0,0.00013398,2]
[360865427,1747084036222,-173.0,0.00013398,2]
[360865428,1747084036245,-192.25030618,0.00013398,2]
[360865429,1747084045113,-266.88472293,0.00013398,2]
[360865545,1747084235839,-300.0,0.00013398,2]
[360865546,1747084235849,-300.0,0.00013398,2]
[360865547,1747084235858,-220.53440294,0.00013398,2]
[360865548,1747084235870,-407.96641018,0.00013398,2]
[360865549,1747084235881,-571.49918688,0.00013398,2]
[360865550,1747084235891,-300.0,0.00013398,2]
[360865551,1747084235900,-2909.99210166,0.00013399,2]
[360865552,1747084235909,-500.0,0.00013399,2]
[360865553,1747084235919,-500.0,0.00013399,2]
[360865555,1747084236054,-347.22369733,0.00013399,2]
[360865556,1747084236107,-500.0,0.00013399,2]
[360865557,1747084236117,-500.0,0.00013399,2]
[360865558,1747084236126,-475.09548833,0.00013399,2]
[360865559,1747084236137,-500.0,0.00013399,2]
[360865560,1747084236147,-500.0,0.00013399,2]
[360865561,1747084236157,-500.0,0.00013399,2]
[360865562,1747084236167,-456.24794615,0.00013399,2]
[360865563,1747084236177,-650.70768196,0.00013399,2]
[360865564,1747084236187,-500.0,0.00013399,2]
[360865565,1747084236200,-500.0,0.00013399,2]
[360865566,1747084236210,-283.44599133,0.00013399,2]
[360865567,1747084236219,-500.0,0.00013399,2]
[360865568,1747084236228,-500.0,0.00013399,2]
[360865569,1747084236238,-500.0,0.00013399,2]
[360865570,1747084236248,-500.0,0.00013399,2]
[360865571,1747084236257,-500.0,0.00013399,2]
[360865572,1747084236267,-500.0,0.00013399,2]
[360865573,1747084236277,-12600.0,0.000134,2]
[360865574,1747084236287,-3603.3937937,0.00013531,2]
[360865575,1747084236296,-500.0,0.00013573,2]
[360865576,1747084236306,-500.0,0.00013573,2]
[360865577,1747084236316,-500.0,0.00013573,2]
[360865578,1747084236326,-500.0,0.00013573,2]
[360865579,1747084236336,-500.0,0.00013573,2]
[360865580,1747084236345,-500.0,0.00013573,2]
[360865581,1747084236354,-500.0,0.00013573,2]
[360865582,1747084236365,-500.0,0.00013573,2]
[360865583,1747084236376,-500.0,0.00013573,2]
[360865584,1747084236387,-155.0,0.0001359,2]
[360865585,1747084236396,-151.07123324,0.0001359,2]
[360865586,1747084236406,-207.4,0.0001359,2]
[360865587,1747084236417,-500.0,0.00013598,2]
[360865588,1747084236426,-500.0,0.00013598,2]
[360865589,1747084236435,-483.03102323,0.00013598,2]
[360865590,1747084236444,-500.0,0.00013598,2]
[360865591,1747084236453,-252.92886154,0.00013598,2]
[360865592,1747084236463,-3114.07949603,0.00013599,2]
[360865599,1747084237680,-10575.5818112,0.00013599,2]
[360865636,1747084240283,-96407.28392959,0.00013599,2]
[360865652,1747084245842,-3326.55,0.00013599,2]
[360865653,1747084246006,-28898.31293792,0.00013599,2]
[360865675,1747085234148,-1000.0,0.00012504,2]
[360865676,1747085234173,-822.13212011,0.00012604,2]
[360865679,1747085242079,-2288.17144749,0.00012604,2]
[360865680,1747085242100,-317.1236158,0.00012604,2]
[360865681,1747085242121,-652.53809012,0.00013207,2]
[360865682,1747085242143,-300.0,0.00013258,2]
[360865683,1747085242165,-1200.0,0.00013259,2]
[360865684,1747085242185,-300.0,0.00013259,2]
[360865685,1747085242206,-1683.55692545,0.0001326,2]
[360865686,1747085242226,-300.0,0.00013348,2]
[360865687,1747085242246,-300.0,0.00013348,2]
[360865688,1747085242267,-16704.92345657,0.00013531,2]
[360865751,1747085431920,-501.04231144,0.00013499,2]
[360865753,1747085431930,-300.0,0.00013529,2]
[360865755,1747085431939,-14681.95840743,0.0001353,2]
[360865757,1747085431949,-500.0,0.0001353,2]
[360865759,1747085431958,-619.94290558,0.0001353,2]
[360865761,1747085431967,-500.0,0.0001353,2]
[360865762,1747085431977,-500.0,0.0001353,2]
[360865764,1747085431986,-500.0,0.0001353,2]
[360865766,1747085431995,-500.0,0.0001353,2]
[360865767,1747085432005,-500.0,0.0001353,2]
[360865769,1747085432014,-500.0,0.0001353,2]
[360865771,1747085432024,-500.0,0.0001353,2]
[360865772,1747085432033,-208.07304113,0.0001353,2]
[360865774,1747085432043,-500.0,0.0001353,2]
[360865776,1747085432052,-500.0,0.0001353,2]
[360865779,1747085432062,-500.0,0.0001353,2]
[360865781,1747085432071,-500.0,0.0001353,2]
[360865782,1747085432080,-500.0,0.0001353,2]
[360865783,1747085432089,-500.0,0.0001353,2]
[360865784,1747085432099,-500.0,0.0001353,2]
[360865785,1747085432109,-500.0,0.0001353,2]
[360865786,1747085432118,-500.0,0.0001353,2]
[360865788,1747085432127,-434.76380619,0.0001353,2]
[360865790,1747085432138,-612.14325968,0.0001353,2]
[360865792,1747085432147,-459.6363254,0.00013531,2]
[360865841,1747085437925,-2423.0787096,0.00013531,2]
[360865842,1747085437935,-151.0,0.0001355,2]
[360865843,1747085437946,-500.0,0.00013573,2]
[360865844,1747085437956,-500.0,0.00013573,2]
[360865845,1747085437967,-500.0,0.00013573,2]
[360865846,1747085437978,-500.0,0.00013573,2]
[360865847,1747085437988,-500.0,0.00013573,2]
[360865848,1747085437998,-500.0,0.00013573,2]
[360865849,1747085438008,-151.0,0.0001359,2]
[360865850,1747085438019,-207.4,0.0001359,2]
[360865851,1747085438029,-173.262,0.00013597,2]
[360865852,1747085438039,-183317.4655003,0.00013599,2]
[360865853,1747085438056,-878.62109527,0.00013599,2]
[360865854,1747085438072,-1197.89573403,0.00013599,2]
[360865855,1747085438084,-5369.8679293,0.00013599,2]
[360865874,1747085440394,-8167.37130658,0.00013599,2]
[360865907,1747085443006,-316.3986712,0.00013599,2]
[360865913,1747085443118,-2246.81322944,0.00013599,2]
[360865939,1747085445949,-8809.86562614,0.00013599,2]
[360865956,1747085446172,-4881.28951933,0.00013599,2]
[360866124,1747086438113,-4806.59385985,0.00012303,2]
[360866125,1747086442191,-193.40614015,0.00012303,2]
[360866126,1747086442214,-300.0,0.00012426,2]
[360866127,1747086442236,-500.0,0.00012427,2]
[360866128,1747086442259,-290.23813997,0.00012427,2]
[360866129,1747086442282,-245.34144901,0.00012427,2]
[360866130,1747086442304,-392.17516343,0.00012427,2]
[360866131,1747086442325,-434.94443132,0.00012428,2]
[360866132,1747086445084,193.0,0.0002,120]
[360866133,1747086508646,26017.09,0.0002,120]
[360866139,1747086547106,-438.20179097,0.00012304,2]
[360866144,1747086550067,-529.82786991,0.00012203,2]
[360866145,1747086550091,-4561.79820903,0.00012304,2]
[360866146,1747086550113,-300.0,0.00012426,2]
[360866147,1747086550134,-500.0,0.00012427,2]
[360866148,1747086550155,-500.0,0.00012427,2]
[360866149,1747086550175,-500.0,0.00012427,2]
[360866150,1747086550195,-405.53210995,0.00012427,2]
[360866151,1747086550215,-500.0,0.00012427,2]
[360866152,1747086550235,-500.0,0.00012427,2]
[360866153,1747086550255,-332.97867754,0.00012427,2]
[360866154,1747086550276,-24465.05556868,0.00012428,2]
[360866155,1747086550296,-50000.0,0.00012428,2]
[360866156,1747086550317,-4270.21760113,0.00012573,2]
[360866157,1747086550350,-3631.49920297,0.00012573,2]
[360866158,1747086550372,-250.0,0.00012598,2]
[360866159,1747086550393,-500.0,0.00012599,2]
[360866160,1747086550576,-500.0,0.00012599,2]
[360866161,1747086550597,-500.0,0.00012599,2]
[360866162,1747086550619,-500.0,0.00012599,2]
[360866163,1747086550640,-500.0,0.00012599,2]
[360866164,1747086550662,-500.0,0.00012599,2]
[360866165,1747086550683,-500.0,0.00012599,2]
[360866166,1747086550703,-500.0,0.00012599,2]
[360866167,1747086550724,-500.0,0.00012599,2]
[360866168,1747086550744,-600.82,0.00012599,2]
[360866169,1747086550765,-500.0,0.00012603,2]
[360866170,1747086550786,-198.4978735,0.00012603,2]
[360866171,1747086550810,-500.0,0.00012603,2]
[360866172,1747086550831,-312.94185775,0.00012603,2]
[360866173,1747086550851,-500.0,0.00012603,2]
[360866174,1747086550871,-2606.1552367,0.00012604,2]
[360866175,1747086550892,-207.4,0.00012918,2]
[360866176,1747086550915,-1118.0347567,0.000133,2]
[360866177,1747086550939,-630.83702748,0.00013335,2]
[360866178,1747086550963,-153.66113,0.00013407,5]
[360866179,1747086550987,-153.66113,0.00013408,3]
[360866180,1747086551176,794.72480292,0.00012304,2]
[360866181,1747086560659,5000.0,0.00013294,2]
[360866185,1747086576017,2526.82359153,0.00013294,2]
[360866189,1747086604391,153.66113,0.0001311,3]
[360866190,1747086604705,153.66113,0.00012514,3]
[360866191,1747086606718,153.66113,0.00013109,5]
[360866192,1747086606974,153.66113,0.00012513,5]
[360866193,1747086607893,153.66113,0.0001311,2]
[360866194,1747086608144,153.66113,0.00012514,2]
[360866195,1747086608780,207.4,0.00012918,2]
[360866235,1747086632213,-829.01386424,0.00013429,2]
[360866237,1747086632223,-308.37003471,0.00013499,2]
[360866239,1747086632232,-1200.0,0.00013499,2]
[360866241,1747086632241,-300.0,0.00013499,2]
[360866243,1747086632251,-412.3340899,0.000135,2]
[360866245,1747086632260,-569.0544613,0.000135,2]
[360866247,1747086632269,-569.0544613,0.000135,2]
[360866249,1747086632279,-569.0544613,0.000135,2]
[360866251,1747086632288,-153.66113,0.00013524,9]
[360866253,1747086632297,-300.0,0.0001353,2]
[360866255,1747086632306,-300.0,0.0001353,2]
[360866257,1747086632315,-300.0,0.0001353,2]
[360866259,1747086632324,-2306.172028,0.00013531,2]
[360866261,1747086632334,-543.0,0.0001355,2]
[360866264,1747086632346,-657.0,0.0001355,2]
[360866266,1747086632355,-348.92904695,0.00013573,2]
[360866284,1747086632514,-434.62451462,0.00013573,2]
[360866286,1747086632524,-500.0,0.00013573,2]
[360866288,1747086632534,-500.0,0.00013573,2]
[360866290,1747086632544,-500.0,0.00013573,2]
[360866292,1747086632554,-500.0,0.00013573,2]
[360866294,1747086632564,-500.0,0.00013573,2]
[360866296,1747086632573,-500.0,0.00013573,2]
[360866298,1747086632583,-500.0,0.00013573,2]
[360866300,1747086632592,-500.0,0.00013573,2]
[360866302,1747086632601,-500.0,0.00013573,2]
[360866304,1747086632611,-500.0,0.00013573,2]
[360866306,1747086632620,-500.0,0.00013573,2]
[360866308,1747086632629,-500.0,0.00013573,2]
[360866310,1747086632639,-500.0,0.00013573,2]
[360866312,1747086632648,-500.0,0.00013573,2]
[360866314,1747086632657,-500.0076644,0.00013573,2]
[360866317,1747086632666,-500.0,0.00013573,2]
[360866318,1747086632676,-500.0,0.00013573,2]
[360866321,1747086632685,-500.0,0.00013573,2]
[360866323,1747086632695,-500.0,0.00013573,2]
[360866324,1747086632704,-500.0,0.00013573,2]
[360866327,1747086632713,-500.0,0.00013573,2]
[360866329,1747086632723,-500.0,0.00013573,2]
[360866331,1747086632733,-500.0,0.00013573,2]
[360866333,1747086632742,-500.0,0.00013573,2]
[360866334,1747086632751,-500.0,0.00013573,2]
[360866337,1747086632761,-422.16418095,0.00013573,2]
[360866339,1747086632770,-500.0,0.00013573,2]
[360866341,1747086632779,-178.55491307,0.00013573,2]
[360866343,1747086632789,-500.0,0.00013573,2]
[360866344,1747086632799,-436008.1819426,0.00013599,2]
[360866346,1747086632812,-85268.4192493,0.00013599,2]
[360866347,1747086632824,-25544.58719222,0.00013599,2]
[360866353,1747086638027,-376151.5144366,0.00013599,2]
[360866354,1747086638037,-500.0,0.00013599,2]
[360866355,1747086638047,-500.0,0.00013599,2]
[360866356,1747086638056,-1014.76229617,0.00013599,2]
[360866357,1747086638066,-250.0,0.000136,2]
[360866358,1747086638075,-151.0,0.000136,2]
[360866359,1747086638085,-151.0,0.000136,2]
[360866360,1747086638094,-151.0,0.000136,2]
[360866361,1747086638103,-151.0,0.000136,2]
[360866362,1747086638112,-500.0,0.000136,2]
[360866364,1747086638121,-502.22121393,0.00013616,2]
[360866366,1747086638131,-2906.7,0.00013616,2]
[360866368,1747086638140,-502.22121393,0.00013671,2]
[360866369,1747086638150,-2721.2,0.00013698,2]
[360866370,1747086638159,-2721.2,0.00013698,2]
[360866371,1747086638168,-160.0,0.00013698,2]
[360866372,1747086638178,-524.497,0.00013699,2]
[360866373,1747086638187,-500.0,0.00013699,2]
[360866374,1747086638196,-500.0,0.00013699,2]
[360866375,1747086638205,-500.0,0.00013699,2]
[360866376,1747086638214,-500.0,0.00013699,2]
[360866377,1747086638223,-500.0,0.00013699,2]
[360866378,1747086638233,-500.0,0.00013699,2]
[360866379,1747086638242,-574.39576034,0.00013699,2]
[360866380,1747086638251,-303.409718,0.00013699,2]
[360866381,1747086638260,-500.0,0.00013699,2]
[360866382,1747086638269,-210.88785316,0.00013699,2]
[360866383,1747086638278,-157.9005868,0.000137,2]
[360866384,1747086638291,-153.0,0.000137,2]
[360866385,1747086638301,-362.9868952,0.000137,2]
[360866386,1747086638311,-153.0,0.000137,2]
[360866387,1747086638321,-157.9005868,0.000137,2]
[360866388,1747086638331,-153.66113,0.00013705,5]
[360866389,1747086638341,-151.353754,0.00013706,3]
[360866390,1747086638351,-153.66113,0.00013706,3]
[360866391,1747086638360,-153.66113,0.00013706,2]
[360866392,1747086638370,-502.22121393,0.00013726,2]
[360866393,1747086638382,-157.9005868,0.000138,2]
[360866394,1747086638392,-362.9868952,0.000138,2]
[360866395,1747086638402,-157.9005868,0.000138,2]
[360866396,1747086638411,-502.22121393,0.00013808,2]
[360866397,1747086638421,-200.0,0.00013814,2]
[360866398,1747086638430,-234.83087809,0.00013814,2]
[360866399,1747086638440,-502.22121393,0.00013863,2]
[360866400,1747086638451,-151.0,0.000139,2]
[360866401,1747086638460,-151.0,0.000139,2]
[360866402,1747086638470,-568.8061225,0.000139,2]
[360866403,1747086638479,-362.9868952,0.000139,2]
[360866404,1747086638489,-153.0,0.000139,2]
[360866405,1747086638498,-157.9005868,0.000139,2]
[360866406,1747086638508,-502.22121393,0.00013945,2]
[360866407,1747086638517,-630.83702749,0.00013964,2]
[360866408,1747086638527,-569.0544613,0.00013973,2]
[360866409,1747086638537,-569.0544613,0.00013973,2]
[360866410,1747086638546,-569.0544613,0.00013973,2]
[360866411,1747086638556,-251.8659009,0.00013973,2]
[360866412,1747086638566,-502.22121393,0.00014,2]
[360866413,1747086638576,-310.5095296,0.00014,2]
[360866414,1747086638585,-153.0,0.00014,2]
[360866415,1747086638753,-153.0,0.00014,5]
[360866416,1747086638763,-151.353754,0.00014003,5]
[360866417,1747086638772,-151.353754,0.00014004,3]
[360866418,1747086638785,-151.353754,0.00014004,2]
[360866419,1747086638795,-502.22121393,0.00014055,2]
[360866420,1747086638805,-552.412,0.00014116,2]
[360866421,1747086638814,-706.0,0.00014116,2]
[360866422,1747086638824,-2240.0,0.00014116,2]
[360866423,1747086638833,-239.635,0.00014116,2]
[360866424,1747086638843,-150.0,0.00014116,2]
[360866425,1747086638853,-195.542,0.00014116,2]
[360866426,1747086638863,-411.926,0.00014116,2]
[360866427,1747086638873,-502.22121393,0.00014137,2]
[360866428,1747086638883,-153.66113,0.00014168,9]
[360866429,1747086638894,-502.22121393,0.00014192,2]
[360866430,1747086638904,-151.0,0.000142,2]
[360866431,1747086638913,-502.22121393,0.00014274,2]
[360866432,1747086638923,-215.0738,0.00014287,2]
[360866433,1747086638933,-151.0,0.000143,2]
[360866434,1747086638944,-151.353754,0.00014301,5]
[360866435,1747086638955,-153.66113,0.00014301,5]
[360866436,1747086638968,-151.353754,0.00014302,3]
[360866437,1747086638978,-151.353754,0.00014302,2]
[360866438,1747086638988,-153.66113,0.00014302,3]
[360866439,1747086638997,-153.66113,0.00014302,2]
[360866440,1747086639009,-502.22121393,0.00014329,2]
[360866441,1747086639018,-150.0,0.00014376,2]
[360866442,1747086639028,-150.0,0.00014376,2]
[360866443,1747086639039,-151.0,0.000144,2]
[360866444,1747086639049,-151.0,0.000145,2]
[360866445,1747086639059,-151.0,0.000145,2]
[360866446,1747086639068,-151.353754,0.00014599,5]
[360866447,1747086639078,-151.0,0.000146,2]
[360866448,1747086639089,-151.353754,0.000146,3]
[360866449,1747086639099,-151.353754,0.000146,2]
[360866450,1747086639109,-151.0,0.000146,2]
[360866451,1747086639118,-151.0,0.000147,2]
[360866452,1747086639127,-151.0,0.000147,2]
[360866453,1747086639138,-3534.00390336,0.00014798,2]
[360866454,1747086639150,-153.66113,0.00014812,9]
[360866455,1747086639160,-420.0,0.0001483,2]
[360866456,1747086639170,-1320.0,0.00014849,2]
[360866457,1747086639179,-500.0,0.00014867,2]
[360866458,1747086639188,-33641.11909822,0.00014868,2]
[360866459,1747086639198,-500.0,0.00014873,2]
[360866460,1747086639207,-500.0,0.00014873,2]
[360866461,1747086639218,-500.0,0.00014873,2]
[360866462,1747086639228,-500.0,0.00014873,2]
[360866463,1747086639237,-548.30356436,0.00014873,2]
[360866464,1747086639246,-500.0,0.00014873,2]
[360866465,1747086639256,-500.0,0.00014873,2]
[360866466,1747086639265,-500.0,0.00014873,2]
[360866467,1747086639274,-500.0,0.00014873,2]
[360866468,1747086639284,-500.0,0.00014873,2]
[360866469,1747086639293,-500.0,0.00014873,2]
[360866470,1747086639303,-500.0,0.00014873,2]
[360866471,1747086639312,-500.0,0.00014873,2]
[360866472,1747086639321,-500.0,0.00014873,2]
[360866473,1747086639331,-500.0,0.00014873,2]
[360866474,1747086639340,-500.0,0.00014873,2]
[360866475,1747086639349,-574.65714367,0.00014873,2]
[360866476,1747086639359,-534.72730727,0.00014873,2]
[360866477,1747086639369,-500.0,0.00014873,2]
[360866478,1747086639378,-500.0,0.00014873,2]
[360866479,1747086639388,-500.0,0.00014873,2]
[360866480,1747086639397,-500.0,0.00014873,2]
[360866481,1747086639407,-500.0,0.00014873,2]
[360866482,1747086639416,-500.0,0.00014873,2]
[360866483,1747086639425,-500.0,0.00014873,2]
[360866484,1747086639435,-170.85906131,0.00014873,2]
[360866485,1747086639445,-500.0,0.00014873,2]
[360866486,1747086639455,-500.0,0.00014873,2]
[360866487,1747086639465,-500.0,0.00014873,2]
[360866488,1747086639475,-500.0,0.00014873,2]
[360866489,1747086639485,-500.0,0.00014873,2]
[360866490,1747086639495,-500.0,0.00014873,2]
[360866491,1747086639505,-500.0,0.00014873,2]
[360866492,1747086639515,-500.0,0.00014873,2]
[360866493,1747086639524,-500.0,0.00014873,2]
[360866494,1747086639533,-500.0,0.00014873,2]
[360866495,1747086639543,-500.0,0.00014873,2]
[360866496,1747086639552,-500.0,0.00014873,2]
[360866497,1747086639561,-500.0,0.00014873,2]
[360866498,1747086639571,-500.0,0.00014873,2]
[360866499,1747086639581,-500.0,0.00014873,2]
[360866500,1747086639590,-500.0,0.00014873,2]
[360866501,1747086639599,-500.0,0.00014873,2]
[360866502,1747086639609,-500.0,0.00014873,2]
[360866503,1747086639618,-500.0,0.00014873,2]
[360866504,1747086639627,-523.6615351,0.00014873,2]
[360866505,1747086639636,-500.0,0.00014873,2]
[360866506,1747086639646,-500.0,0.00014873,2]
[360866507,1747086639655,-500.0,0.00014873,2]
[360866508,1747086639666,-500.0,0.00014873,2]
[360866509,1747086639675,-500.0,0.00014873,2]
[360866510,1747086639684,-500.0,0.00014873,2]
[360866511,1747086639694,-500.0,0.00014873,2]
[360866512,1747086639703,-500.18343914,0.00014873,2]
[360866513,1747086639713,-500.0,0.00014873,2]
[360866514,1747086639722,-500.0,0.00014897,2]
[360866515,1747086639732,-1021780.83329255,0.00014898,2]
[360866529,1747086646115,-473.34136985,0.00013598,2]
[360866530,1747086647762,-165.6071416,0.00013598,2]
[360866531,1747086647776,-500.0,0.00013598,2]
[360866532,1747086647804,-582.28466999,0.00013598,2]
[360866533,1747086647822,-500.0,0.00013699,2]
[360866534,1747086647840,-434.39752655,0.00013699,2]
[360866535,1747086647857,-7853.30312694,0.00014898,2]
[360866536,1747087007557,205.222697,0.00013921,120]
[360866540,1747087639096,-174.28639541,0.00013074,2]
[360866541,1747087639120,-5279.8768132,0.00013149,2]
[360866542,1747087639142,-156.17023444,0.00013654,2]
[360866543,1747087639289,-300.0,0.00013654,2]
[360866544,1747087639354,-300.0,0.00013654,2]
[360866545,1747087639379,-202.90310499,0.00013655,2]
[360866546,1747087639402,-151.0,0.00013655,2]
[360866547,1747087639428,-211.89863129,0.00013655,2]
[360866548,1747087639450,-151.0,0.00013655,2]
[360866549,1747087639473,-151.0,0.00013655,2]
[360866550,1747087639495,-151.0,0.00013655,2]
[360866551,1747087639515,-166.0,0.00013655,2]
[360866552,1747087639536,-151.0,0.00013655,2]
[360866553,1747087639558,-166.0,0.00013655,2]
[360866554,1747087639579,-151.0,0.00013655,2]
[360866555,1747087639600,-162.89753949,0.00013655,2]
[360866556,1747087639622,-151.0,0.00013655,2]
[360866557,1747087639643,-400.0,0.00013655,2]
[360866558,1747087639665,-151.0,0.00013655,2]
[360866559,1747087639687,-160.0,0.00013655,2]
[360866560,1747087639708,-151.0,0.00013655,2]
[360866561,1747087639728,-151.0,0.00013655,2]
[360866562,1747087639750,-160.0,0.00013655,2]
[360866563,1747087639770,-151.0,0.00013655,2]
[360866564,1747087639792,-160.0,0.00013655,2]
[360866565,1747087639813,-160.0,0.00013655,2]
[360866566,1747087639834,-151.0,0.00013655,2]
[360866567,1747087639855,-159.9559305,0.00013655,2]
[360866568,1747087639876,-151.0,0.00013655,2]
[360866569,1747087639897,-151.0,0.00013655,2]
[360866570,1747087639919,-151.0,0.00013655,2]
[360866571,1747087639939,-151.0,0.00013655,2]
[360866572,1747087639960,-151.0,0.00013655,2]
[360866573,1747087639980,-151.0,0.00013655,2]
[360866574,1747087640001,-151.0,0.00013655,2]
[360866575,1747087640022,-151.0,0.00013655,2]
[360866576,1747087640043,-151.0,0.00013655,2]
[360866577,1747087640063,-230.89635605,0.00013655,2]
[360866578,1747087640085,-320.0,0.00013655,2]
[360866579,1747087640107,-320.0,0.00013655,2]
[360866580,1747087640129,-320.0,0.00013655,2]
[360866581,1747087640149,-320.0,0.00013655,2]
[360866582,1747087640168,-320.0,0.00013655,2]
[360866583,1747087640193,-320.0,0.00013655,2]
[360866584,1747087640213,-320.0,0.00013655,2]
[360866585,1747087640235,-320.0,0.00013655,2]
[360866586,1747087640258,-320.0,0.00013655,2]
[360866587,1747087640277,-320.0,0.00013655,2]
[360866588,1747087640297,-320.0,0.00013655,2]
[360866589,1747087640317,-320.0,0.00013655,2]
[360866590,1747087640337,-320.0,0.00013655,2]
[360866591,1747087640358,-320.0,0.00013655,2]
[360866592,1747087640379,-320.0,0.00013655,2]
[360866593,1747087640399,-320.0,0.00013655,2]
[360866594,1747087640420,-320.0,0.00013655,2]
[360866595,1747087640440,-320.0,0.00013655,2]
[360866596,1747087640461,-320.0,0.00013655,2]
[360866597,1747087640482,-320.0,0.00013655,2]
[360866598,1747087640503,-320.0,0.00013655,2]
[360866599,1747087640523,-320.0,0.00013655,2]
[360866600,1747087640543,-320.0,0.00013655,2]